fUSD/lending_fUSD_20250107
["ID","MTS","AMOUNT","RATE_DAILY","PERIOD"]
[347965320,1736251850026,-2476.27,9.987e-05,2]
[347965321,1736251850036,-3275.55,9.987e-05,2]
[347965322,1736251850045,-3275.55,9.987e-05,2]
[347965323,1736251850055,-3061.110723,9.997e-05,2]
[347965324,1736251850064,-7745.0864636,9.997e-05,2]
[347965325,1736251850074,-500.0,9.999e-05,2]
[347965326,1736251850083,-2476.27,9.999e-05,2]
[347965327,1736251850093,-2476.27,9.999e-05,2]
[347965328,1736251850103,-2476.27,9.999e-05,2]
[347965329,1736251850112,-2476.27,9.999e-05,2]
[347965330,1736251850124,-2476.27,9.999e-05,2]
[347965331,1736251850134,-2476.27,9.999e-05,2]
[347965332,1736251850143,-2476.27,9.999e-05,2]
[347965333,1736251850153,-2476.27,9.999e-05,2]
[347965334,1736251850163,-2476.27,9.999e-05,2]
[347965335,1736251850173,-2476.27,9.999e-05,2]
[347965336,1736251850183,-2476.27,9.999e-05,2]
[347965337,1736251850192,-2476.27,9.999e-05,2]
[347965338,1736251850202,-2476.34711341,9.999e-05,2]
[347965339,1736251850211,-3275.55,9.999e-05,2]
[347965340,1736251850222,-3275.55,9.999e-05,2]
[347965341,1736251850231,-3275.55,9.999e-05,2]
[347965342,1736251850241,-3275.55,9.999e-05,2]
[347965343,1736251850250,-3275.55,9.999e-05,2]
[347965344,1736251850259,-3275.55,9.999e-05,2]
[347965345,1736251850269,-3275.55,9.999e-05,2]
[347965346,1736251850280,-3275.55,9.999e-05,2]
[347965347,1736251850290,-3275.55,9.999e-05,2]
[347965348,1736251850300,-3275.55,9.999e-05,2]
[347965349,1736251850309,-3275.55,9.999e-05,2]
[347965350,1736251850319,-3275.55,9.999e-05,2]
[347965351,1736251850328,-3275.65692008,9.999e-05,2]
[347965352,1736251850338,-161.31938386,9.999e-05,2]
[347965353,1736251850347,-775.0,0.0001,2]
[347965354,1736251850357,-8044945.34844234,0.0001,2]
[347965355,1736251850368,-481368.66589163,0.0001,2]
[347965356,1736251850391,-5537.268292,0.0001,2]
[347965357,1736251852279,-500.0,9.502e-05,2]
[347965358,1736251852290,-520.34,9.773e-05,2]
[347965359,1736251852302,-1172.06,9.775e-05,2]
[347965360,1736251852313,-500.0,9.775e-05,2]
[347965361,1736251852324,-500.0,9.775e-05,2]
[347965362,1736251852336,-500.0,9.776e-05,2]
[347965363,1736251852348,-328.47430104,9.783e-05,2]
[347965364,1736251852359,-500.0,9.783e-05,2]
[347965365,1736251852371,-500.0,9.783e-05,2]
[347965366,1736251852383,-37.22898983,0.0001,2]
[347965367,1736251852428,-1009.1505492,0.0001,2]
[347965368,1736251852451,-913.21127125,0.0001,2]
[347965369,1736251852481,-2738.07309937,0.0001,2]
[347965370,1736251852494,-16962.25875,0.0001,2]
[347965371,1736251852512,-25546.60725443,0.0001,2]
[347965372,1736251852530,-1000.26430331,0.0001,2]
[347965374,1736252299270,150.0,0.00018,120]
[347965419,1736253031687,-251.26889995,8.219e-05,2]
[347965420,1736253031752,-511.33110005,8.219e-05,2]
[347965421,1736253031762,-200.0,8.345e-05,2]
[347965422,1736253031772,-250.0,8.383e-05,2]
[347965423,1736253031782,-300.0,8.434e-05,2]
[347965424,1736253031791,-3579.16889995,8.435e-05,2]
[347965425,1736253031803,-7001.47110005,8.435e-05,2]
[347965426,1736253031812,-684.3,8.583e-05,2]
[347965427,1736253031823,-1076.31,8.737e-05,2]
[347965428,1736253031833,-162.03,8.737e-05,2]
[347965429,1736253031844,-418.09,8.758e-05,2]
[347965430,1736253031854,-800.0,8.768e-05,2]
[347965431,1736253031864,-1178.5,8.817e-05,2]
[347965432,1736253031874,-1143.73,8.885e-05,2]
[347965433,1736253031884,-150.0,8.978e-05,2]
[347965434,1736253031894,-873.95,8.978e-05,2]
[347965435,1736253031903,-182.89,8.978e-05,2]
[347965436,1736253031912,-182.89,8.978e-05,2]
[347965437,1736253031923,-182.8,8.978e-05,2]
[347965438,1736253031932,-150.0,9e-05,2]
[347965439,1736253031942,-150.0,9e-05,2]
[347965440,1736253031951,-274.72,9.002e-05,2]
[347965441,1736253031961,-1000.0,9.002e-05,2]
[347965442,1736253031972,-250.0,9.002e-05,2]
[347965443,1736253031981,-392.31,9.074e-05,2]
[347965445,1736253031990,-166.62,9.097e-05,2]
[347965447,1736253031999,-420.0,9.277e-05,2]
[347965449,1736253032010,-268.7913,9.403e-05,2]
[347965451,1736253032019,-1935.0,9.485e-05,2]
[347965453,1736253032028,-1000.0,9.501e-05,2]
[347965455,1736253032038,-762.59,9.502e-05,2]
[347965457,1736253032047,-500.0,9.502e-05,2]
[347965459,1736253032056,-617.66,9.502e-05,2]
[347965461,1736253032066,-500.0,9.502e-05,2]
[347965463,1736253032076,-849.2,9.502e-05,2]
[347965465,1736253032085,-500.0,9.502e-05,2]
[347965467,1736253032094,-500.0,9.502e-05,2]
[347965469,1736253032103,-500.0,9.502e-05,2]
[347965472,1736253032111,-716.03,9.502e-05,2]
[347965474,1736253032121,-1484.57,9.503e-05,2]
[347965476,1736253032130,-1239.83,9.503e-05,2]
[347965478,1736253032140,-1547.69,9.503e-05,2]
[347965480,1736253032149,-2178.79,9.503e-05,2]
[347965482,1736253032158,-1201.65,9.503e-05,2]
[347965484,1736253032168,-7183.41,9.503e-05,2]
[347965486,1736253032178,-1821.31,9.503e-05,2]
[347965488,1736253032187,-3019.37,9.503e-05,2]
[347965490,1736253032197,-1382.83,9.503e-05,2]
[347965492,1736253032206,-1523.48,9.503e-05,2]
[347965494,1736253032216,-500.0,9.503e-05,2]
[347965496,1736253032226,-992.5,9.503e-05,2]
[347965498,1736253032237,-3120.16,9.503e-05,2]
[347965500,1736253032247,-716.59,9.503e-05,2]
[347965502,1736253032256,-1109.68,9.503e-05,2]
[347965503,1736253032265,-657.74,9.503e-05,2]
[347965505,1736253032274,-583.3,9.503e-05,2]
[347965508,1736253032283,-929.35,9.503e-05,2]
[347965510,1736253032293,-631.39,9.503e-05,2]
[347965511,1736253032303,-3637.91,9.503e-05,2]
[347965512,1736253032312,-436.94,9.51e-05,2]
[347965514,1736253032321,-150.91,9.51e-05,2]
[347965516,1736253032330,-183.43,9.51e-05,2]
[347965518,1736253032339,-5177.59015719,9.589e-05,2]
[347965521,1736253032357,-4488.004,9.589e-05,2]
[347965529,1736253032433,-27809.35181346,9.589e-05,2]
[347965532,1736253032445,-20972.19071355,9.589e-05,2]
[347965534,1736253032457,-1995.6133158,9.589e-05,2]
[347965536,1736253032466,-4444.50425298,9.745e-05,2]
[347965538,1736253032476,-569.38,9.772e-05,2]
[347965540,1736253032485,-5955.92,9.772e-05,2]
[347965542,1736253032494,-3480.01273386,9.772e-05,2]
[347965544,1736253032509,-1133.40474205,9.772e-05,2]
[347965545,1736253032524,-1642.68629816,9.772e-05,2]
[347965604,1736253037478,-6041.4339319,8.345e-05,2]
[347965605,1736253037487,-3448.90622593,9.772e-05,2]
[347965606,1736253037497,-4729.29,9.772e-05,2]
[347965607,1736253037506,-2909.72,9.772e-05,2]
[347965608,1736253037516,-4277.31,9.772e-05,2]
[347965609,1736253037525,-6842.41,9.772e-05,2]
[347965610,1736253037534,-1690.72,9.772e-05,2]
[347965611,1736253037544,-598.85,9.772e-05,2]
[347965612,1736253037553,-527.29,9.772e-05,2]
[347965613,1736253037562,-595.78,9.772e-05,2]
[347965614,1736253037571,-500.0,9.772e-05,2]
[347965615,1736253037580,-703.71,9.772e-05,2]
[347965616,1736253037590,-541.66,9.772e-05,2]
[347965617,1736253037599,-2599.33,9.772e-05,2]
[347965618,1736253037608,-500.0,9.772e-05,2]
[347965619,1736253037617,-887.84,9.772e-05,2]
[347965620,1736253037627,-500.0,9.772e-05,2]
[347965621,1736253037636,-500.0,9.772e-05,2]
[347965622,1736253037645,-1876.11,9.772e-05,2]
[347965623,1736253037655,-1600.81,9.773e-05,2]
[347965624,1736253037664,-892.61,9.773e-05,2]
[347965625,1736253037674,-1589.36,9.773e-05,2]
[347965626,1736253037683,-500.0,9.773e-05,2]
[347965627,1736253037693,-898.68,9.773e-05,2]
[347965628,1736253037702,-1636.5,9.773e-05,2]
[347965629,1736253037711,-30.11443113,9.773e-05,2]
[347965632,1736253037723,-430.16154549,9.773e-05,2]
[347965634,1736253037734,-411.56402338,9.773e-05,2]
[347965636,1736253037743,-500.0,9.773e-05,2]
[347965638,1736253037753,-500.0,9.773e-05,2]
[347965640,1736253037763,-500.0,9.773e-05,2]
[347965642,1736253037773,-541.27,9.773e-05,2]
[347965644,1736253037782,-872.92,9.773e-05,2]
[347965646,1736253037791,-1047.86,9.773e-05,2]
[347965648,1736253037801,-761.64,9.773e-05,2]
[347965650,1736253037810,-1257.53,9.773e-05,2]
[347965652,1736253037820,-1097.83,9.773e-05,2]
[347965654,1736253037829,-500.0,9.773e-05,2]
[347965656,1736253037839,-542.76,9.773e-05,2]
[347965658,1736253037849,-864.21,9.773e-05,2]
[347965660,1736253037859,-516.38,9.773e-05,2]
[347965662,1736253037869,-919.4,9.773e-05,2]
[347965663,1736253037878,-1002.24,9.773e-05,2]
[347965665,1736253037888,-536.57,9.773e-05,2]
[347965666,1736253037898,-500.0,9.773e-05,2]
[347965667,1736253037907,-500.0,9.773e-05,2]
[347965668,1736253037916,-500.0,9.773e-05,2]
[347965669,1736253037925,-500.0,9.773e-05,2]
[347965670,1736253037934,-638.5,9.773e-05,2]
[347965671,1736253037943,-625.0,9.773e-05,2]
[347965672,1736253037953,-527.37,9.773e-05,2]
[347965673,1736253037963,-500.0,9.773e-05,2]
[347965674,1736253037977,-500.0,9.773e-05,2]
[347965675,1736253037987,-500.0,9.773e-05,2]
[347965676,1736253037996,-500.0,9.773e-05,2]
[347965677,1736253038005,-501.55,9.773e-05,2]
[347965678,1736253038015,-726.45,9.773e-05,2]
[347965679,1736253038025,-557.6,9.773e-05,2]
[347965680,1736253038035,-211.35358881,9.773e-05,2]
[347965681,1736253038047,-288.64641119,9.773e-05,2]
[347965682,1736253038056,-18.55358877,9.773e-05,2]
[347965683,1736253038087,-690.99641123,9.773e-05,2]
[347965684,1736253038097,-500.0,9.773e-05,2]
[347965685,1736253038107,-675.88358877,9.773e-05,2]
[347965686,1736253038130,-331.02641123,9.773e-05,2]
[347965687,1736253038139,-669.07,9.773e-05,2]
[347965688,1736253038148,-500.0,9.773e-05,2]
[347965689,1736253038158,-1231.22,9.773e-05,2]
[347965690,1736253038167,-1585.39,9.773e-05,2]
[347965691,1736253038177,-1297.84,9.773e-05,2]
[347965692,1736253038187,-887.14,9.773e-05,2]
[347965693,1736253038196,-2403.31870252,9.773e-05,2]
[347965694,1736253038207,-2650.78129748,9.773e-05,2]
[347965695,1736253038216,-757.9,9.773e-05,2]
[347965696,1736253038226,-500.0,9.773e-05,2]
[347965697,1736253038235,-3923.29,9.773e-05,2]
[347965698,1736253038245,-1050.54,9.773e-05,2]
[347965699,1736253038254,-2083.55,9.773e-05,2]
[347965700,1736253038265,-500.0,9.773e-05,2]
[347965701,1736253038274,-7098.01,9.773e-05,2]
[347965702,1736253038284,-500.0,9.773e-05,2]
[347965703,1736253038293,-967.34,9.773e-05,2]
[347965704,1736253038303,-532.1,9.773e-05,2]
[347965705,1736253038312,-1385.02,9.773e-05,2]
[347965706,1736253038322,-677.88,9.773e-05,2]
[347965707,1736253038331,-860.01,9.773e-05,2]
[347965708,1736253038340,-5962.92,9.773e-05,2]
[347965709,1736253038350,-500.0,9.773e-05,2]
[347965710,1736253038359,-2050.27,9.773e-05,2]
[347965711,1736253038369,-500.0,9.773e-05,2]
[347965712,1736253038379,-500.0,9.773e-05,2]
[347965713,1736253038388,-572.12,9.773e-05,2]
[347965714,1736253038397,-13955.26685119,9.773e-05,2]
[347965715,1736253038493,-7168.75314881,9.773e-05,2]
[347965716,1736253038503,-500.0,9.773e-05,2]
[347965717,1736253038515,-554.2,9.773e-05,2]
[347965718,1736253038524,-500.0,9.773e-05,2]
[347965719,1736253038534,-1124.22,9.773e-05,2]
[347965720,1736253038543,-500.0,9.773e-05,2]
[347965721,1736253038553,-2157.25,9.773e-05,2]
[347965722,1736253038561,-500.0,9.773e-05,2]
[347965723,1736253038571,-608.06,9.773e-05,2]
[347965724,1736253038580,-2804.91,9.773e-05,2]
[347965725,1736253038590,-512.7,9.773e-05,2]
[347965726,1736253038599,-3501.75,9.773e-05,2]
[347965727,1736253038608,-2254.66,9.773e-05,2]
[347965728,1736253038618,-501.20527677,9.773e-05,2]
[347965729,1736253038627,-5605.89,9.773e-05,2]
[347965730,1736253038636,-500.0,9.773e-05,2]
[347965731,1736253038646,-3360.28,9.773e-05,2]
[347965732,1736253038655,-826.78,9.773e-05,2]
[347965733,1736253038665,-1228.46,9.773e-05,2]
[347965734,1736253038674,-1664.06,9.773e-05,2]
[347965735,1736253038685,-1951.56,9.773e-05,2]
[347965736,1736253038694,-1951.56,9.773e-05,2]
[347965737,1736253038704,-643.51,9.773e-05,2]
[347965738,1736253038713,-500.0,9.773e-05,2]
[347965739,1736253038723,-10467.66,9.773e-05,2]
[347965740,1736253038733,-6076.02,9.773e-05,2]
[347965741,1736253038743,-894.46,9.773e-05,2]
[347965742,1736253038752,-2158.38,9.773e-05,2]
[347965743,1736253038763,-1076.42,9.773e-05,2]
[347965744,1736253038773,-500.0,9.773e-05,2]
[347965745,1736253038782,-1219.18,9.773e-05,2]
[347965746,1736253038791,-1593.61,9.773e-05,2]
[347965747,1736253038800,-1413.44,9.774e-05,2]
[347965748,1736253038810,-500.0,9.774e-05,2]
[347965749,1736253038819,-500.0,9.774e-05,2]
[347965750,1736253038829,-1451.71,9.774e-05,2]
[347965751,1736253038839,-500.0,9.774e-05,2]
[347965752,1736253038849,-500.0,9.774e-05,2]
[347965753,1736253038860,-520.83,9.774e-05,2]
[347965754,1736253038869,-500.0,9.774e-05,2]
[347965755,1736253038879,-500.0,9.774e-05,2]
[347965756,1736253038888,-1940.49,9.774e-05,2]
[347965757,1736253038898,-1181.77,9.774e-05,2]
[347965758,1736253038908,-1417.99,9.774e-05,2]
[347965759,1736253038917,-1575.68,9.774e-05,2]
[347965760,1736253038927,-868.92,9.774e-05,2]
[347965761,1736253038936,-764.71,9.774e-05,2]
[347965762,1736253038946,-591.91,9.774e-05,2]
[347965763,1736253038955,-832.8,9.774e-05,2]
[347965764,1736253038967,-500.0,9.774e-05,2]
[347965765,1736253038983,-500.0,9.774e-05,2]
[347965766,1736253038993,-500.0,9.774e-05,2]
[347965767,1736253039002,-500.0,9.774e-05,2]
[347965768,1736253039013,-500.0,9.774e-05,2]
[347965769,1736253039022,-500.0,9.774e-05,2]
[347965770,1736253039031,-1520.05,9.774e-05,2]
[347965771,1736253039040,-500.0,9.774e-05,2]
[347965772,1736253039049,-555.37,9.774e-05,2]
[347965773,1736253039059,-500.0,9.774e-05,2]
[347965774,1736253039068,-500.0,9.774e-05,2]
[347965775,1736253039077,-1833.95,9.774e-05,2]
[347965776,1736253039086,-192.9365568,9.774e-05,2]
[347965777,1736253039096,-1817.5,9.774e-05,2]
[347965778,1736253039105,-500.0,9.774e-05,2]
[347965779,1736253039114,-1658.13,9.774e-05,2]
[347965780,1736253039123,-500.0,9.774e-05,2]
[347965781,1736253039134,-500.0,9.774e-05,2]
[347965782,1736253039144,-500.0,9.774e-05,2]
[347965783,1736253039153,-817.77,9.774e-05,2]
[347965784,1736253039162,-500.0,9.774e-05,2]
[347965785,1736253039171,-500.0,9.774e-05,2]
[347965786,1736253039180,-1817.72,9.774e-05,2]
[347965787,1736253039189,-2074.58,9.774e-05,2]
[347965788,1736253039198,-500.0,9.774e-05,2]
[347965789,1736253039207,-500.0,9.774e-05,2]
[347965790,1736253039217,-500.0,9.774e-05,2]
[347965791,1736253039226,-625.24,9.774e-05,2]
[347965792,1736253039235,-500.0,9.774e-05,2]
[347965793,1736253039244,-2232.44,9.774e-05,2]
[347965794,1736253039253,-640.96,9.774e-05,2]
[347965795,1736253039263,-873.95,9.774e-05,2]
[347965796,1736253039272,-500.0,9.774e-05,2]
[347965798,1736253039281,-2094.05,9.774e-05,2]
[347965799,1736253039290,-625.0,9.774e-05,2]
[347965800,1736253039299,-500.0,9.774e-05,2]
[347965801,1736253039308,-548.79,9.774e-05,2]
[347965802,1736253039317,-500.0,9.774e-05,2]
[347965803,1736253039327,-1608.75,9.774e-05,2]
[347965804,1736253039336,-500.0,9.774e-05,2]
[347965805,1736253039345,-500.0,9.774e-05,2]
[347965806,1736253039354,-561.58,9.774e-05,2]
[347965807,1736253039363,-806.49,9.774e-05,2]
[347965808,1736253039372,-2173.45,9.774e-05,2]
[347965809,1736253039381,-500.0,9.774e-05,2]
[347965810,1736253039390,-906.24,9.774e-05,2]
[347965811,1736253039399,-833.08,9.774e-05,2]
[347965812,1736253039409,-500.0,9.774e-05,2]
[347965813,1736253039418,-685.73,9.774e-05,2]
[347965814,1736253039427,-1610.23,9.774e-05,2]
[347965815,1736253039437,-500.0,9.774e-05,2]
[347965816,1736253039447,-500.0,9.774e-05,2]
[347965818,1736253039456,-1330.42,9.774e-05,2]
[347965820,1736253039465,-522.53,9.774e-05,2]
[347965821,1736253039474,-500.0,9.774e-05,2]
[347965822,1736253039483,-500.0,9.774e-05,2]
[347965823,1736253039493,-857.38,9.774e-05,2]
[347965824,1736253039502,-500.0,9.774e-05,2]
[347965826,1736253039512,-500.0,9.774e-05,2]
[347965828,1736253039522,-3936.34,9.774e-05,2]
[347965830,1736253039531,-500.0,9.774e-05,2]
[347965832,1736253039540,-2481.3,9.774e-05,2]
[347965834,1736253039550,-500.0,9.774e-05,2]
[347965836,1736253039559,-3961.21,9.774e-05,2]
[347965838,1736253039568,-500.0,9.774e-05,2]
[347965840,1736253039577,-1319.17,9.774e-05,2]
[347965841,1736253039586,-1920.68,9.774e-05,2]
[347965843,1736253039595,-670.32,9.774e-05,2]
[347965845,1736253039605,-500.0,9.774e-05,2]
[347965847,1736253039614,-500.0,9.774e-05,2]
[347965849,1736253039623,-500.0,9.774e-05,2]
[347965851,1736253039632,-500.0,9.774e-05,2]
[347965853,1736253039642,-500.0,9.774e-05,2]
[347965855,1736253039651,-2596.95,9.774e-05,2]
[347965857,1736253039661,-500.0,9.774e-05,2]
[347965859,1736253039670,-2734.25,9.774e-05,2]
[347965861,1736253039680,-500.0,9.774e-05,2]
[347965863,1736253039689,-500.0,9.774e-05,2]
[347965864,1736253039698,-535.77,9.774e-05,2]
[347965866,1736253039708,-500.0,9.774e-05,2]
[347965868,1736253039717,-500.0,9.774e-05,2]
[347965870,1736253039726,-1785.29,9.774e-05,2]
[347965872,1736253039735,-4151.85,9.774e-05,2]
[347965874,1736253039745,-500.0,9.774e-05,2]
[347965876,1736253039754,-500.0,9.774e-05,2]
[347965878,1736253039763,-409.61649709,9.774e-05,2]
[347965880,1736253039773,-500.0,9.774e-05,2]
[347965882,1736253039783,-500.0,9.774e-05,2]
[347965883,1736253039793,-977.74,9.774e-05,2]
[347965885,1736253039802,-500.0,9.774e-05,2]
[347965886,1736253039812,-500.0,9.774e-05,2]
[347965887,1736253039822,-500.0,9.774e-05,2]
[347965888,1736253039832,-500.0,9.774e-05,2]
[347965889,1736253039842,-1284.01,9.774e-05,2]
[347965890,1736253039852,-1604.15,9.774e-05,2]
[347965892,1736253039862,-500.0,9.774e-05,2]
[347965894,1736253039871,-500.0,9.774e-05,2]
[347965896,1736253039881,-684.94,9.774e-05,2]
[347965897,1736253039890,-500.0,9.774e-05,2]
[347965898,1736253039900,-495.07382589,9.774e-05,2]
[347965899,1736253039909,-2223.31,9.774e-05,2]
[347965900,1736253039919,-1684.79,9.774e-05,2]
[347965901,1736253039929,-500.0,9.774e-05,2]
[347965902,1736253039938,-500.0,9.774e-05,2]
[347965903,1736253039948,-500.0,9.774e-05,2]
[347965904,1736253039958,-5751.51,9.774e-05,2]
[347965906,1736253039971,-500.0,9.774e-05,2]
[347965907,1736253039981,-1227.82,9.774e-05,2]
[347965909,1736253039990,-1163.84,9.774e-05,2]
[347965911,1736253040000,-500.0,9.774e-05,2]
[347965913,1736253040009,-764.48,9.774e-05,2]
[347965915,1736253040022,-1304.34,9.774e-05,2]
[347965917,1736253040031,-1601.55,9.774e-05,2]
[347965919,1736253040041,-1097.38,9.774e-05,2]
[347965921,1736253040050,-500.0,9.774e-05,2]
[347965923,1736253040060,-5799.25,9.774e-05,2]
[347965925,1736253040069,-500.0,9.774e-05,2]
[347965927,1736253040079,-500.0,9.774e-05,2]
[347965929,1736253040088,-500.0,9.774e-05,2]
[347965931,1736253040098,-5822.82,9.774e-05,2]
[347965933,1736253040108,-764.56,9.774e-05,2]
[347965935,1736253040118,-500.0,9.774e-05,2]
[347965937,1736253040127,-516.17187516,9.774e-05,2]
[347965939,1736253040136,-500.0,9.774e-05,2]
[347965941,1736253040146,-500.0,9.774e-05,2]
[347965943,1736253040155,-500.0,9.774e-05,2]
[347965945,1736253040164,-1320.63,9.774e-05,2]
[347965947,1736253040174,-500.0,9.774e-05,2]
[347965949,1736253040183,-500.0,9.774e-05,2]
[347965951,1736253040193,-500.0,9.774e-05,2]
[347965953,1736253040202,-500.0,9.774e-05,2]
[347965955,1736253040212,-500.0,9.775e-05,2]
[347965957,1736253040222,-500.0,9.775e-05,2]
[347965959,1736253040231,-500.0,9.775e-05,2]
[347965961,1736253040241,-500.0,9.775e-05,2]
[347965963,1736253040251,-500.0,9.775e-05,2]
[347965965,1736253040260,-500.0,9.775e-05,2]
[347965967,1736253040272,-500.0,9.775e-05,2]
[347965989,1736253040469,-344.99995757,9.775e-05,2]
[347965991,1736253040480,-500.0,9.775e-05,2]
[347965993,1736253040489,-500.0,9.775e-05,2]
[347965995,1736253040498,-501.35458818,9.775e-05,2]
[347965997,1736253040508,-501.03903812,9.775e-05,2]
[347965999,1736253040519,-500.0,9.775e-05,2]
[347966001,1736253040528,-500.0,9.775e-05,2]
[347966003,1736253040538,-399.09399067,9.775e-05,2]
[347966005,1736253040547,-501.93853913,9.775e-05,2]
[347966007,1736253040556,-500.0,9.775e-05,2]
[347966009,1736253040565,-502.47505461,9.775e-05,2]
[347966011,1736253040575,-301.14555245,9.775e-05,2]
[347966013,1736253040584,-580.53368935,9.775e-05,2]
[347966015,1736253040593,-500.0,9.775e-05,2]
[347966017,1736253040602,-500.0,9.775e-05,2]
[347966019,1736253040611,-501.3582667,9.775e-05,2]
[347966021,1736253040620,-501.85174169,9.775e-05,2]
[347966023,1736253040630,-448.2175815,9.775e-05,2]
[347966024,1736253040640,-502.43758198,9.775e-05,2]
[347966026,1736253040650,-500.0,9.775e-05,2]
[347966028,1736253040659,-500.0,9.775e-05,2]
[347966030,1736253040669,-500.0,9.775e-05,2]
[347966032,1736253040679,-503.63133791,9.775e-05,2]
[347966034,1736253040688,-402.54753878,9.775e-05,2]
[347966036,1736253040698,-500.0,9.775e-05,2]
[347966038,1736253040707,-500.0,9.775e-05,2]
[347966040,1736253040717,-500.0,9.775e-05,2]
[347966042,1736253040726,-500.0,9.775e-05,2]
[347966044,1736253040735,-500.0,9.775e-05,2]
[347966046,1736253040745,-500.0,9.775e-05,2]
[347966048,1736253040755,-500.0,9.775e-05,2]
[347966050,1736253040765,-500.0,9.775e-05,2]
[347966052,1736253040775,-500.0,9.775e-05,2]
[347966054,1736253040784,-500.0,9.775e-05,2]
[347966056,1736253040793,-500.0,9.775e-05,2]
[347966058,1736253040802,-500.0,9.775e-05,2]
[347966060,1736253040811,-913.18,9.775e-05,2]
[347966062,1736253040822,-500.0,9.775e-05,2]
[347966064,1736253040831,-500.0,9.775e-05,2]
[347966066,1736253040840,-500.0,9.775e-05,2]
[347966068,1736253040849,-500.0,9.775e-05,2]
[347966070,1736253040859,-500.0,9.775e-05,2]
[347966072,1736253040869,-500.0,9.775e-05,2]
[347966074,1736253040880,-500.0,9.775e-05,2]
[347966076,1736253040889,-500.0,9.775e-05,2]
[347966078,1736253040899,-500.0,9.775e-05,2]
[347966080,1736253040908,-500.0,9.775e-05,2]
[347966082,1736253040918,-706.63577924,9.775e-05,2]
[347966084,1736253040928,-500.90899813,9.775e-05,2]
[347966086,1736253040938,-423.98510593,9.775e-05,2]
[347966088,1736253040947,-500.0,9.775e-05,2]
[347966090,1736253040957,-502.61382146,9.775e-05,2]
[347966092,1736253040969,-500.0,9.775e-05,2]
[347966093,1736253040980,-500.0,9.775e-05,2]
[347966096,1736253040990,-500.0,9.775e-05,2]
[347966098,1736253041000,-500.0,9.775e-05,2]
[347966100,1736253041011,-500.0,9.775e-05,2]
[347966102,1736253041022,-500.0,9.775e-05,2]
[347966104,1736253041032,-500.0,9.775e-05,2]
[347966106,1736253041042,-500.0,9.775e-05,2]
[347966108,1736253041054,-500.0,9.775e-05,2]
[347966110,1736253041063,-500.0,9.775e-05,2]
[347966112,1736253041073,-500.0,9.775e-05,2]
[347966114,1736253041084,-500.0,9.775e-05,2]
[347966116,1736253041094,-500.0,9.775e-05,2]
[347966118,1736253041104,-500.0,9.775e-05,2]
[347966120,1736253041113,-500.0,9.775e-05,2]
[347966122,1736253041123,-500.0,9.775e-05,2]
[347966124,1736253041132,-500.0,9.775e-05,2]
[347966126,1736253041142,-500.0,9.775e-05,2]
[347966128,1736253041151,-551.82,9.775e-05,2]
[347966130,1736253041161,-562.58,9.775e-05,2]
[347966132,1736253041170,-500.0,9.775e-05,2]
[347966134,1736253041179,-500.0,9.775e-05,2]
[347966136,1736253041188,-500.0,9.775e-05,2]
[347966138,1736253041197,-500.0,9.775e-05,2]
[347966140,1736253041206,-500.0,9.775e-05,2]
[347966142,1736253041217,-429.37285989,9.775e-05,2]
[347966144,1736253041226,-500.0,9.775e-05,2]
[347966146,1736253041235,-500.0,9.775e-05,2]
[347966148,1736253041245,-500.0,9.775e-05,2]
[347966149,1736253041253,-500.0,9.775e-05,2]
[347966151,1736253041264,-661.11,9.775e-05,2]
[347966154,1736253041274,-500.0,9.775e-05,2]
[347966156,1736253041284,-500.0,9.775e-05,2]
[347966158,1736253041293,-500.0,9.775e-05,2]
[347966159,1736253041303,-500.0,9.775e-05,2]
[347966161,1736253041313,-500.0,9.775e-05,2]
[347966163,1736253041322,-500.0,9.775e-05,2]
[347966165,1736253041331,-500.0,9.775e-05,2]
[347966167,1736253041341,-500.0,9.775e-05,2]
[347966169,1736253041351,-500.0,9.775e-05,2]
[347966171,1736253041360,-500.0,9.775e-05,2]